Workbook

Sheet Simulateur
A1: Simulateur pour calcul du salaire coordonné effectif | L1: Valeurs historiques
I3: Salaire cotisant
D4: annuel 2015 | E4: mensuel 2015 | I4: 0.00 | J4: 0.00 | L4: annuel 2011-12 | M4: mensuel 2011-12 | O4: annuel 2009-10 | P4: mensuel 2009-10 | R4: annuel 2006 | S4: mensuel 2006 | U4: annuel 2015 | V4: mensuel 2015
C5: Seuil d'entrée | D5: 21,150.- | E5: =D5/12 -> 1,762.50 | I5: =E5 -> 1,762.50 | J5: =E6-E5 -> 293.75 | K5: min | L5: 20880 | M5: 1,612.50 | O5: 20'520.- | P5: 1,710.00 | R5: 19'350.- | S5: 1,612.50 | U5: 21,060.- | V5: =U5/12 -> 1,755.00
C6: Salaire assuré minimum | D6: 24,675.- | E6: =D6/12 -> 2,056.25 | I6: =E6+(E6-E5) -> 2,350.00 | J6: =G11 -> 2,943.75 | L6: 24360 | M6: 1,881.25 | O6: 23'940.- | P6: 1,995.00 | R6: 22'575.- | S6: 1,881.25 | U6: 24,570.- | V6: =U6/12 -> 2,047.50
C7: Salaire assuré maximum | D7: 84,600.- | E7: =D7/12 -> 7,050.00 | I7: =E7 -> 7,050.00 | J7: =(D7-D6)/12 -> 4,993.75 | K7: max | L7: 83520 | M7: 6,450.00 | O7: 82'080.- | P7: 6,840.00 | R7: 77'400.- | S7: 6,450.00 | U7: 84,240.- | V7: =U7/12 -> 7,020.00
I8: 20,000.00
B9: +
C10: Salaire brut | D10: Salaire cotisant LPP | G10: Salaire coordonné
C11: 5,000.00 | D11: =LOOKUP(C11,I4:J8) -> 2,943.75 | F11: 10,000.00 | G11: =C11-E6 -> 2,943.75
B12: -
B13: annuel -> | C13: =C11*12 -> 60,000.00 | D13: =D11*12 -> 35,325.00 | G13: =G11*12 -> 35,325.00
A15: =IF(D11=0,0,IF(D11=J5,2,IF(D11=J7,2,1))) -> 1
C17: =C11 -> 5,000.00 | D17: =D11 -> 2,943.75 | E17: 10000
B34: http://www.vdfisc.ch/salaires.htm

Sheet Questionnaire
C4: Salaire brut | D4: Salaire cotisant LPP
C6: 6,700.- | D6: =IF(AND(C6>=2000,C6<=2200),Simulateur!$J$5,C6-Simulateur!$E$6) -> 4643.75 | H6: =IF(C6<Simulateur!$E$5,0,IF(AND(C6>Simulateur!$I$5-0.1,C6<Simulateur!$I$6),Simulateur!$J$5,IF(C6>Simulateur!$E$7,Simulateur!$J$7,IF(C6>Simulateur!$E$6-0.1,C6-Simulateur!$E$6)))) -> 4643.75 | J6: =IF(H6=D6,TRUE,FALSE) -> TRUE | K6: =IF(O6=0,"",IF(J6=F6,"Juste"," Pas d'accord !")) ->  | M6: =IF(F6=FALSE,0,1) -> 0 | N6: =IF(G6=FALSE,0,1) -> 0 | O6: =SUM(M6:N6) -> 0
C7: 1,700.- | D7: =IF(AND(C7>=2000,C7<=2200),Simulateur!$J$5,C7-Simulateur!$E$6) -> 356.25 | H7: =IF(C7<Simulateur!$E$5,0,IF(AND(C7>Simulateur!$I$5-0.1,C7<Simulateur!$I$6),Simulateur!$J$5,IF(C7>Simulateur!$E$7,Simulateur!$J$7,IF(C7>Simulateur!$E$6-0.1,C7-Simulateur!$E$6)))) -> 0 | J7: =IF(H7=D7,TRUE,FALSE) -> FALSE | K7: =IF(O7=0,"",IF(J7=F7,"Juste"," Pas d'accord !")) ->  | M7: =IF(F7=FALSE,0,1) -> 0 | N7: =IF(G7=FALSE,0,1) -> 0 | O7: =SUM(M7:N7) -> 0
C8: 1,200.- | D8: =IF(AND(C8>=2000,C8<=2200),Simulateur!$J$5,C8-Simulateur!$E$6) -> 856.25 | H8: =IF(C8<Simulateur!$E$5,0,IF(AND(C8>Simulateur!$I$5-0.1,C8<Simulateur!$I$6),Simulateur!$J$5,IF(C8>Simulateur!$E$7,Simulateur!$J$7,IF(C8>Simulateur!$E$6-0.1,C8-Simulateur!$E$6)))) -> 0 | J8: FALSE | M8: 0 | N8: 0 | O8: 0
C9: 5,200.- | D9: =IF(AND(C9>=2000,C9<=2200),Simulateur!$J$5,C9-Simulateur!$E$6) -> 3143.75 | H9: =IF(C9<Simulateur!$E$5,0,IF(AND(C9>Simulateur!$I$5-0.1,C9<Simulateur!$I$6),Simulateur!$J$5,IF(C9>Simulateur!$E$7,Simulateur!$J$7,IF(C9>Simulateur!$E$6-0.1,C9-Simulateur!$E$6)))) -> 3143.75 | J9: TRUE | M9: 0 | N9: 0 | O9: 0
C10: 2,400.- | D10: =IF(AND(C10>=2000,C10<=2200),Simulateur!$J$5,C10-Simulateur!$E$6) -> 343.75 | H10: =IF(C10<Simulateur!$E$5,0,IF(AND(C10>Simulateur!$I$5-0.1,C10<Simulateur!$I$6),Simulateur!$J$5,IF(C10>Simulateur!$E$7,Simulateur!$J$7,IF(C10>Simulateur!$E$6-0.1,C10-Simulateur!$E$6)))) -> 343.75 | J10: TRUE | M10: 0 | N10: 0 | O10: 0
C11: 1,900.- | D11: =IF(AND(C11>=2000,C11<=2200),Simulateur!$J$5,C11-Simulateur!$E$6) -> 156.25 | H11: =IF(C11<Simulateur!$E$5,0,IF(AND(C11>Simulateur!$I$5-0.1,C11<Simulateur!$I$6),Simulateur!$J$5,IF(C11>Simulateur!$E$7,Simulateur!$J$7,IF(C11>Simulateur!$E$6-0.1,C11-Simulateur!$E$6)))) -> 293.75 | J11: FALSE | M11: 0 | N11: 0 | O11: 0
C12: 2,700.- | D12: =IF(AND(C12>=2000,C12<=2200),Simulateur!$J$5,C12-Simulateur!$E$6) -> 643.75 | H12: =IF(C12<Simulateur!$E$5,0,IF(AND(C12>Simulateur!$I$5-0.1,C12<Simulateur!$I$6),Simulateur!$J$5,IF(C12>Simulateur!$E$7,Simulateur!$J$7,IF(C12>Simulateur!$E$6-0.1,C12-Simulateur!$E$6)))) -> 643.75 | J12: TRUE | M12: 0 | N12: 0 | O12: 0
C13: 6,700.- | D13: =IF(AND(C13>=2000,C13<=2200),Simulateur!$J$5,C13-Simulateur!$E$6) -> 4643.75 | H13: =IF(C13<Simulateur!$E$5,0,IF(AND(C13>Simulateur!$I$5-0.1,C13<Simulateur!$I$6),Simulateur!$J$5,IF(C13>Simulateur!$E$7,Simulateur!$J$7,IF(C13>Simulateur!$E$6-0.1,C13-Simulateur!$E$6)))) -> 4643.75 | J13: TRUE | M13: 0 | N13: 0 | O13: 0
C14: 200.- | D14: =IF(AND(C14>=2000,C14<=2200),Simulateur!$J$5,C14-Simulateur!$E$6) -> 1856.25 | H14: =IF(C14<Simulateur!$E$5,0,IF(AND(C14>Simulateur!$I$5-0.1,C14<Simulateur!$I$6),Simulateur!$J$5,IF(C14>Simulateur!$E$7,Simulateur!$J$7,IF(C14>Simulateur!$E$6-0.1,C14-Simulateur!$E$6)))) -> 0 | J14: FALSE | M14: 0 | N14: 0 | O14: 0
C15: 1,600.- | D15: =IF(AND(C15>=2000,C15<=2200),Simulateur!$J$5,C15-Simulateur!$E$6) -> 456.25 | H15: =IF(C15<Simulateur!$E$5,0,IF(AND(C15>Simulateur!$I$5-0.1,C15<Simulateur!$I$6),Simulateur!$J$5,IF(C15>Simulateur!$E$7,Simulateur!$J$7,IF(C15>Simulateur!$E$6-0.1,C15-Simulateur!$E$6)))) -> 0 | J15: FALSE | M15: 0 | N15: 0 | O15: 0
C16: 4,500.- | D16: =IF(AND(C16>=2000,C16<=2200),Simulateur!$J$5,C16-Simulateur!$E$6) -> 2443.75 | H16: =IF(C16<Simulateur!$E$5,0,IF(AND(C16>Simulateur!$I$5-0.1,C16<Simulateur!$I$6),Simulateur!$J$5,IF(C16>Simulateur!$E$7,Simulateur!$J$7,IF(C16>Simulateur!$E$6-0.1,C16-Simulateur!$E$6)))) -> 2443.75 | J16: TRUE | M16: 0 | N16: 0 | O16: 0
C17: 7,200.- | D17: =IF(AND(C17>=2000,C17<=2200),Simulateur!$J$5,C17-Simulateur!$E$6) -> 5143.75 | H17: =IF(C17<Simulateur!$E$5,0,IF(AND(C17>Simulateur!$I$5-0.1,C17<Simulateur!$I$6),Simulateur!$J$5,IF(C17>Simulateur!$E$7,Simulateur!$J$7,IF(C17>Simulateur!$E$6-0.1,C17-Simulateur!$E$6)))) -> 4993.75 | J17: FALSE | M17: 0 | N17: 0 | O17: 0
C18: 1,400.- | D18: =IF(AND(C18>=2000,C18<=2200),Simulateur!$J$5,C18-Simulateur!$E$6) -> 656.25 | H18: =IF(C18<Simulateur!$E$5,0,IF(AND(C18>Simulateur!$I$5-0.1,C18<Simulateur!$I$6),Simulateur!$J$5,IF(C18>Simulateur!$E$7,Simulateur!$J$7,IF(C18>Simulateur!$E$6-0.1,C18-Simulateur!$E$6)))) -> 0 | J18: FALSE | M18: 0 | N18: 0 | O18: 0
C19: 2,100.- | D19: =IF(AND(C19>=2000,C19<=2200),Simulateur!$J$5,C19-Simulateur!$E$6) -> 293.75 | H19: =IF(C19<Simulateur!$E$5,0,IF(AND(C19>Simulateur!$I$5-0.1,C19<Simulateur!$I$6),Simulateur!$J$5,IF(C19>Simulateur!$E$7,Simulateur!$J$7,IF(C19>Simulateur!$E$6-0.1,C19-Simulateur!$E$6)))) -> 293.75 | J19: TRUE | M19: 0 | N19: 0 | O19: 0
C20: 7,900.- | D20: =IF(AND(C20>=2000,C20<=2200),Simulateur!$J$5,C20-Simulateur!$E$6) -> 5843.75 | H20: =IF(C20<Simulateur!$E$5,0,IF(AND(C20>Simulateur!$I$5-0.1,C20<Simulateur!$I$6),Simulateur!$J$5,IF(C20>Simulateur!$E$7,Simulateur!$J$7,IF(C20>Simulateur!$E$6-0.1,C20-Simulateur!$E$6)))) -> 4993.75 | J20: FALSE | M20: 0 | N20: 0 | O20: 0
M21: =COUNTIF(K6:K20,"Juste") -> 0
M22: =IF(M21<2," bonne réponse"," bonnes réponses") -> bonne réponse
C24: =M21 & M22 &" / 15" -> 0 bonne réponse / 15

Sheet Image (hidden)
